Cogmind - Beta 15 @@@ ROGUE MODE // 2025.08.30 @ 19:57:42 Player: TheGreatPlup Result: Destroyed by Y-45 Defender with Beam Rifle Performance ------------- Evolutions (1) 500 Regions Visited (3) 600 Robots Destroyed (45) 225 Value Destroyed (956) 956 Prototype IDs (2) 40 Alien Tech Used (0) 0 Bonus (218) 218 TOTAL SCORE: 2539 Bonus ------- Follower Combat Kills 218 Cogmind --------- Core Integrity 0/400 Matter 71/300 Energy 250/250 System Corruption 4% Temperature Cool (9) Movement Walking (190) Ox1 Location -9/Materials Parts ------- > --- POWER (1) -------- Ion Engine > --- PROPULSION (3) --- Aluminum Leg Aluminum Leg > --- UTILITY (3) ------ Large Storage Unit Signal Interpreter Advanced Targeting Computer > --- WEAPON (2) ------- Grenade Launcher Flail > --- INVENTORY (15) --- Ion Engine Ion Engine Medium Matter Pod (100) Weapon Shielding Light Armor Plating Reflective Plating Reflective Plating Reflective Plating Reflective Plating Thief Drone Bay (3/3) Light Assault Rifle Grenade Launcher Mining Laser Flail Peak State ------------ > --- POWER ------------ Ion Engine > --- PROPULSION ------- Light Treads Light Treads Light Treads > --- UTILITY ---------- Large Storage Unit Signal Interpreter Advanced Targeting Computer > --- WEAPON ----------- Beam Cannon Minigun > --- INVENTORY -------- Ion Engine Ion Engine Ion Engine Aluminum Leg Aluminum Leg Medium Matter Pod Weapon Shielding Thief Drone Bay Improved EM Shotgun Minigun Grenade Launcher Mining Laser [Rating: 15] Favorites ----------- Power Ion Engine Engine Ion Engine Propulsion Light Treads Treads Light Treads Leg Aluminum Leg Utility Large Storage Unit Device Sensor Array Storage Large Storage Unit Processor Signal Interpreter Weapon Light Assault Rifle Energy Gun Particle Gun Energy Cannon Beam Cannon Ballistic Gun Light Assault Rifle Launcher Grenade Launcher Special Weapon Mining Laser Impact Weapon Flail Slashing Weapon Mining Claw Build | -11 -10 -10 -9 ------- Run | Yrd Mat Min Mat Slots Evolved 2 | . . . 2 Power . | . . . . Propulsion 1 | . . . 1 Utility 1 | . . . 1 Weapon . | . . . . Parts Attached 45 | 6 9 6 24 Power 8 | 1 2 2 3 Engine 8 | 1 2 2 3 Core . | . . . . Reactor . | . . . . Propulsion 15 | 2 2 3 8 Treads 6 | . . 2 4 Leg 9 | 2 2 1 4 Wheel . | . . . . Hover . | . . . . Flight . | . . . . Utility 7 | 1 3 . 3 Device 3 | . 2 . 1 Storage 2 | 1 1 . . Processor 2 | . . . 2 Hackware . | . . . . Protection . | . . . . Artifact . | . . . . Weapon 15 | 2 2 1 10 Energy Gun 1 | . . 1 . Energy Cannon 1 | . . . 1 Ballistic Gun 9 | 2 2 . 5 Ballistic Cannon . | . . . . Launcher 1 | . . . 1 Special Weapon 1 | . . . 1 Impact Weapon 1 | . . . 1 Slashing Weapon 1 | . . . 1 Piercing Weapon . | . . . . Special Melee Weapon . | . . . . Unidentified Prototypes . | . . . . Parts Lost 21 | . 4 3 14 Power 5 | . 1 1 3 Propulsion 9 | . 2 2 5 Utility 1 | . . . 1 Weapon 6 | . 1 . 5 Highest Loss Streak 7 | . 3 3 7 To Critical Strikes . | . . . . Average Backups 12 | 3 12 13 13 Power 2 | . 3 2 2 Propulsion 2 | 2 2 . 2 Utility 3 | . 2 5 4 Weapon 4 | . 3 4 4 Tool/Special . | . . . . Unused Backups 16 | . 2 . 14 Power 3 | . 1 . 2 Propulsion . | . . . . Utility 5 | . . . 5 Weapon 8 | . 1 . 7 Tool/Special . | . . . . Average Slot Usage (%) 95 | . 98 98 92 Engine 12 | . 14 13 10 Treads 16 | . . 24 25 Leg 11 | . 27 2 2 Device 10 | . 12 14 6 Storage 12 | . 14 14 11 Processor 6 | . . . 15 Energy Gun 3 | . . 12 1 Energy Cannon 1 | . . . 4 Ballistic Gun 17 | . 28 15 9 Slashing Weapon 2 | . . . 4 Peak Build Rating 15 | 6 8 10 15 Average Rating 10 | 3 7 9 12 On Entrance 6 | . 6 8 10 Naked Turns . | . . . . Heaviest Build 34 | 10 28 30 34 Greatest Support 60 | 20 20 40 60 Greatest Overweight (x) 2 | 1 2 2 2 Average Overweight (x) . | . . . . Largest Inventory Capacity 15 | 8 15 15 15 Average Capacity 14 | 7 13 15 15 Most Carried 15 | 8 15 15 15 Average Carried 12 | 4 12 13 13 Final Capacity 15 | 8 15 15 15 Final Carried 15 | 4 15 14 14 Class Distribution -------------------- 86% | Mutant 13% | Scavenger-Mutant Dominant Class ---------------- Mutant | -10/Materials Mutant | -10/Mines Mutant | -9/Materials Resources | -11 -10 -10 -9 ----------- Run | Yrd Mat Min Mat Matter Collected 910 | 238 244 69 359 Remotely . | . . . . Salvage Created 1076 | . 333 120 623 Parts 95 | . 36 13 46 Haulers Intercepted . | . . . . Recyclers Shooed 1 | . 1 . . Parts Field Recycled . | . . . . Retrieved Matter . | . . . . Parts Self-Destructed . | . . . . Prevented . | . . . . Kills | -11 -10 -10 -9 ------- Run | Yrd Mat Min Mat Combat Hostiles Destroyed 41 | . 14 5 22 Melee 1 | . . . 1 Guns 29 | . 14 5 10 Cannons 8 | . . . 8 AOE 3 | . . . 3 Classes Destroyed 6 | . 2 . 4 Worker 2 | . . . 2 Operator 1 | . . . 1 Watcher 1 | . . . 1 Swarmer 24 | . 9 3 12 Grunt 12 | . 5 2 5 Sentry 5 | . . . 5 Best Kill Streak 5 | . 4 3 5 Combat Bots Only 5 | . 4 3 5 Max Kills in Single Turn 2 | . 1 2 2 Gunslinging 1 | . . 1 . Exploded 1 | . . . 1 Melee 1 | . . . 1 Uniques/NPCs Destroyed . | . . . . Combat | -11 -10 -10 -9 -------- Run | Yrd Mat Min Mat Hostile Shots Fired 407 | . 103 64 240 Missed 97 | . 31 16 50 Hits 310 | . 72 48 190 Projectile 310 | . 72 48 190 Critical Strikes 10 | . 1 2 7 Damage Taken 3291 | . 698 484 2109 Core 647 | . 108 127 412 Absorbed by Shields . | . . . . Core Remaining (%) 53 | 100 . 6 . Volleys Fired 164 | . 52 13 99 Largest 2 | . 2 2 2 Hottest 100 | . 40 85 100 Shots Fired 201 | . 78 25 98 Gun 161 | . 78 25 58 Cannon 28 | . . . 28 Launcher 11 | . . . 11 Special 1 | . . . 1 Kinetic 150 | . 78 14 58 Thermal 40 | . . 11 29 Explosive 11 | . . . 11 Electromagnetic . | . . . . Robot Hit Streak 12 | . 7 11 12 Robot Miss Streak 3 | . 3 2 3 Penetration Max . | . . . . Secondary Targets 3 | . 1 2 . Max Gunslinging Chain 1 | . 1 1 . Shots Hit Robots 145 | . 49 18 78 Core Hits 65 | . 20 8 37 Critical Kills 1 | . 1 . . Critical Parts Destroyed 1 | . . . 1 Critical Strikes 2 | . 1 . 1 Destroy 2 | . 1 . 1 Melee Attacks 17 | . . . 17 Impact . | . . . . Slashing 17 | . . . 17 Piercing . | . . . . Sneak Attacks . | . . . . Combat Hostiles . | . . . . Follow-up Attacks . | . . . . Damage Inflicted 2241 | . 419 214 1608 Guns 1321 | . 419 214 688 Cannons 349 | . . . 349 Explosions 389 | . . . 389 Melee 182 | . . . 182 Ramming . | . . . . Kinetic 1174 | . 419 67 688 Thermal 496 | . . 147 349 Explosive 389 | . . . 389 Electromagnetic . | . . . . Impact . | . . . . Slashing 182 | . . . 182 Piercing . | . . . . Highest Corruption 4 | . 3 3 4 Average Corruption 3 | . 2 3 3 Corruption Purged . | . . . . Corruption Blocked . | . . . . Effects 60 | . 19 15 26 Message Errors 21 | . 6 6 9 Matter Fused 11 | . 5 3 3 Heat Flow Errors 6 | . 3 1 2 Energy Discharges 1 | . . . 1 Parts Rejected 4 | . . 2 2 Parts Fused 1 | . . . 1 Data Loss (minor) 6 | . 3 1 2 Data Loss (major) 3 | . 1 . 2 Misfires 1 | . . 1 . Alerts 4 | . 1 1 2 Weapon Failures 2 | . . . 2 Overload Shots . | . . . . Overflow Damage 12 | . . . 12 Projectiles . | . . . . Explosions 12 | . . . 12 Melee . | . . . . Knockbacks . | . . . . Impact . | . . . . Kinetic . | . . . . Secondary . | . . . . Self-Inflicted Damage 52 | . . . 52 Shots 4 | . . . 4 Rammed . | . . . . Targets Rammed . | . . . . Kicked . | . . . . Crushed . | . . . . Highest Temperature 378 | . 138 378 293 Average Temperature 86 | . 46 149 70 Received Heat Transfer 918 | . 213 156 549 Siege Activations . | . . . . Martial Activations . | . . . . Shielding Activations . | . . . . Robots Disrupted . | . . . . Combat Hostiles . | . . . . Robots Corrupted . | . . . . Combat Hostiles . | . . . . Parts Fried . | . . . . Impact Corruptions . | . . . . Robots Melted . | . . . . Combat Hostiles . | . . . . Parts Melted 7 | . . 3 4 Heat Transferred 1110 | . . 370 740 Parts Sabotaged . | . . . . Parts Stolen . | . . . . Parts Stripped . | . . . . Power Chain Reactions . | . . . . Alert | -11 -10 -10 -9 ------- Run | Yrd Mat Min Mat Maximum Alert Level 1 | . . . 1 Low Security (%) 98 | 100 100 100 96 Level 1 1 | . . . 3 Level 2 . | . . . . Level 3 . | . . . . Level 4 . | . . . . Level 5 . | . . . . High Security . | . . . . Max Security . | . . . . Peak Influence 221 | . 125 70 221 Initial 14 | . . 14 . Average 35 | . 24 10 58 Influence Increases 1334 | . 345 120 869 Destroy 0b10 Robot/C 980 | . 280 100 600 Destroy 0b10 Robot/NC 25 | . . . 25 Destroy Leader 212 | . 50 20 142 Allied During Kill 32 | . . . 32 Disable Machine 15 | . . . 15 Destroy Structure 55 | . . . 55 Lose Combat Pursuer 15 | . 15 . . Influence Decreases 1113 | . 307 158 648 Entered New Map 24 | . . 24 . Time Decay 866 | . 268 134 464 Lost Part 163 | . 39 . 124 Lost Ally 60 | . . . 60 Squads Dispatched 6 | . 3 . 3 Investigation 1 | . . . 1 Extermination . | . . . . Reinforcement 5 | . 3 . 2 Assault . | . . . . Garrison . | . . . . Intercept . | . . . . Searches Triggered . | . . . . Construction Impeded . | . . . . Haulers Reinforced . | . . . . Active Scanning Responses . | . . . . Cargo Convoy Interrupts . | . . . . Stealth | -11 -10 -10 -9 --------- Run | Yrd Mat Min Mat Distress Signals 4 | . 2 . 2 Communications Jammed . | . . . . Distress Signals . | . . . . Times Spotted 80 | . 28 5 47 Peak Tracking Total 6 | . 4 3 6 Tactical Retreats 1 | . 1 . . Traps | -11 -10 -10 -9 ------- Run | Yrd Mat Min Mat Traps Triggered 5 | . 2 . 3 Indirectly . | . . . . Trap Hack Attempts . | . . . . Triggered . | . . . . Disarmed . | . . . . Reprogrammed . | . . . . Reused . | . . . . Traps Extracted . | . . . . Installed . | . . . . Triggered . | . . . . Machines | -11 -10 -10 -9 ---------- Run | Yrd Mat Min Mat Machines Disabled 1 | . . . 1 Max in Single Turn . | . . . . Machines Repaired . | . . . . Machines Dismantled . | . . . . Machines Sabotaged . | . . . . Overloaded Fab Kills . | . . . . Hacking | -11 -10 -10 -9 --------- Run | Yrd Mat Min Mat Machines Accessed 3 | . . 1 2 Terminals . | . . . . Fabricators . | . . . . Repair Stations . | . . . . Recycling Units . | . . . . Scanalyzers 2 | . . . 2 Garrison Access . | . . . . Total Hacks 3 | . . 1 2 Successful 3 | . . 1 2 Failed . | . . . . Catastrophic . | . . . . Database Lockouts . | . . . . Manual . | . . . . Terminals . | . . . . Fabricators . | . . . . Repair Stations . | . . . . Recycling Units . | . . . . Scanalyzers 2 | . . . 2 Garrison Access . | . . . . Terminal Hacks 1 | . . 1 . Open Door 1 | . . 1 . Fabricator Hacks . | . . . . Repair Station Hacks . | . . . . Recycling Unit Hacks . | . . . . Scanalyzer 2 | . . . 2 Insert Component 2 | . . . 2 Garrison Access Hacks . | . . . . Unauthorized Hacks . | . . . . Terminals . | . . . . Fabricators . | . . . . Repair Stations . | . . . . Recycling Units . | . . . . Scanalyzers . | . . . . Garrison Access . | . . . . Data Cores Recovered . | . . . . Used . | . . . . Hacking Detections . | . . . . Full Trace Events . | . . . . Feedback Events . | . . . . Feedback Blocked . | . . . . Robot Schematics Acquired . | . . . . Robots Built . | . . . . Authchips . | . . . . Time . | . . . . Total Robot Build Rating . | . . . . Part Schematics Acquired . | . . . . Parts Built . | . . . . Authchips . | . . . . Time . | . . . . Total Part Build Rating . | . . . . Parts Repaired . | . . . . Time . | . . . . Parts Recycled . | . . . . Recycled Matter . | . . . . Retrieved Matter . | . . . . Retrieved Components . | . . . . Parts Scanalyzed . | . . . . Part Schematics Acquired . | . . . . Parts Damaged . | . . . . Bothacking | -11 -10 -10 -9 ------------ Run | Yrd Mat Min Mat Used RIF Installer . | . . . . Robots Hacked . | . . . . Non-combat . | . . . . Combat . | . . . . Robot Hacks Applied . | . . . . Relay Couplers Released . | . . . . Fabnet Peak Effective % . | . . . . Robots Rewired . | . . . . Allies Hacked . | . . . . Hacks Repelled . | . . . . Allies | -11 -10 -10 -9 -------- Run | Yrd Mat Min Mat Total Allies 4 | . . 4 . Largest Group 4 | . . 4 3 Highest-Rated Group 71 | . . 71 40 Highest-Rated Ally 31 | . . 31 16 Total Orders 9 | . . 6 3 GUARD 9 | . . 6 3 Ally Attacks 54 | . . . 54 Total Damage 543 | . . . 543 Kills 9 | . . . 9 Allies Corrupted . | . . . . Allies Melted . | . . . . Intel | -11 -10 -10 -9 ------- Run | Yrd Mat Min Mat Active Infowar (turns) 2975 | . 1205 847 923 Sensors 2395 | . 625 847 923 Structural 580 | . 580 . . Robot Analysis Total . | . . . . Derelict Logs Recovered 1 | . . 1 . Drone Launches . | . . . . Drone Recoveries . | . . . . Exploration | -11 -10 -10 -9 ------------- Run | Yrd Mat Min Mat Turns Passed 3866 | 52 1345 847 1622 Spaces Moved 1827 | 44 606 483 694 Core 25 | 25 . . . Treads 1083 | . . 447 636 Legs 719 | 19 606 36 58 Wheels . | . . . . Hover . | . . . . Flight . | . . . . Fastest Speed 50 | 50 120 160 120 Average Speed 166 | 85 177 163 163 Slowest Speed 260 | 120 260 260 260 Overloaded Moves . | . . . . Propulsion Burnouts . | . . . . Robots Hopped . | . . . . Potential Cave-ins . | . . . . Cave-ins Triggered . | . . . . Exploration Rate (%) 59 | 3 93 82 61 Regions Visited 3 Branch Regions 1 Pre-discovered Areas . | . . . . Known Exits Taken . | . . . . Unknown Exits Taken 3 | 1 1 1 . Scrap Searched . | . . . . Spaces Dug 2 | . . . 2 Terrain Destroyed 69 | . . . 69 Melee 1 | . . . 1 Projectile 1 | . . . 1 AOE 67 | . . . 67 Terrain Rammed . | . . . . Walls Destroyed . | . . . . Machines Disabled . | . . . . Actions | -11 -10 -10 -9 --------- Run | Yrd Mat Min Mat Total 2451 | 57 816 517 1061 Wait 318 | . 124 10 184 Move 1824 | 43 605 482 694 Hop . | . . . . Pick Up 57 | 8 20 5 24 Fast Attach 5 | 2 . . 3 Attach 32 | 4 6 5 17 Detach . | . . . . Swap 12 | . 3 1 8 Drop 22 | . 6 1 15 Fire 164 | . 52 13 99 Melee 17 | . . . 17 Ram . | . . . . Kick . | . . . . Crush . | . . . . Escape Stasis . | . . . . Rewire . | . . . . Trap . | . . . . Miscellaneous . | . . . . Route ------- -11/Scrapyard -10/Materials (discovered 6 exits: *Mat x3 / *Min x2 / [*Sub]) -10/Mines -9/Materials (discovered 1 exit: [*Mat]) History --------- Turn | Location | Event 7 | -11/Scrapyard | Discovered new exit (range 14) 53 | -11/Scrapyard | Entered Materials 311 | -10/Materials | Build established: Mutant 388 | -10/Materials | Discovered new exit (range 16) 503 | -10/Materials | Lost 3 parts (1p1n1w) 628 | -10/Materials | Discovered new exit (range 16) 782 | -10/Materials | Discovered new exit (range 3) 1007 | -10/Materials | Discovered new exit (range 8) 1131 | -10/Materials | Discovered new exit (range 9) 1203 | -10/Materials | Discovered new exit (range 9) 1398 | -10/Materials | Entered Mines 1449 | -10/Mines | Core integrity fell below 50% 1471 | -10/Mines | Core integrity fell below 20% 1495 | -10/Mines | Lost 3 parts (1p2n) 1511 | -10/Mines | Found the Drone Emporium 1520 | -10/Mines | Found Prototype Device 1548 | -10/Mines | Learned Materials terminal intel 1739 | -10/Mines | Assisted by bots powering up and referring to "LRC-V3" 1768 | -10/Mines | Found a damaged Exp. Sensor Array with a note attached 1771 | -10/Mines | Found Prototype Device 1838 | -10/Mines | Received a Mining Laser from a helpful Derelict 1945 | -10/Mines | Discovered new exit (range 6) 2245 | -10/Mines | Entered Materials 2245 | -9/Materials | Accompanied by 3 allies 2245 | -9/Materials | Evolved 2 slots: Propulsion x1, Utility x1 2246 | -9/Materials | Loaded intel: 12 terminal locations 2727 | -9/Materials | Lost 3 allies 3102 | -9/Materials | Identified Thief Drone Bay 3199 | -9/Materials | Lost 3 parts (1n1u1w) 3299 | -9/Materials | Core integrity fell below 50% 3473 | -9/Materials | Discovered new exit (range 10) 3753 | -9/Materials | Core integrity fell below 20% 3789 | -9/Materials | Lost 7 parts (1p3n3w) 3867 | -9/Materials | Destroyed by Y-45 Defender with Beam Rifle Last Messages --------------- 03768_ U-05 Engineer builds a Wall. 03770_ Y-45 Defender destroyed. 03770_ K-01 Serf destroyed. 03772_ P5E>H5IRS5G2A&ED08S F>XMQ 03772_ U-05 Engineer builds a Wall. 03776_ O-16 Technician: "IFF HANDSHAKE FAILED. SECURING TERMINAL." 03780_ U-05 Engineer lays Concrete. 03786_ ALERT: Hostiles spotted, dispatching reinforcements to Terminal M003. 03800_ Acquired Flail. 03803_ Acquired Grenade Launcher. 03808_ Acquired Flail. 03817_ Connecting with Terminal... 03832_ Acquired Reflective Plating. 03835_ System corrupted: Heat flow error (+169). 03835_ Acquired Reflective Plating. 03859_ O-16 Technician destroyed. 03861_ System corrupted: Grenade Launcher failed to launch. 03865_ Destroyed Hover Unit. 03865_ W-16 Scout destroyed. Map ----- +----------------------------------------------------+ | ????????????????????????????????????????????? | | ????????????????????????????????????????????? | | ????????????????????????????????????????????? | | ????????????????????????????????????????????? | | ????????????????????????????????????????????? | | ????????????????????????????????????????????? | | ????????????????????????????????????????????? | | ????????????????????????????????????????????? | | ????????????????????????????????????????????? | | ????????????????????????????????????????????? | | ????????????????????????????????????????????? | | ????????????????????????????????????????????? | | ????????????????????????????????????????????? | | ??????????????????????T??????????????? ?????? | | ?????????????????????????????????????? ?????? | | ?????????????????????????????????????? ?????? | | ?????????????????????????????????????? ?????? | | ?????????????????????????????????????? ?????? | | ????????????????T????????????????????? ?????? | | ???????????# ??????????????????###???? ?????? | | ???????????# ?????############# #####+#????? | | ???????????# "???#!! ==# ## #????? | | ???????????#/ ""??#!! ==# """"" ## #????? | | ????? # ## # ""T"" ## #????? | | ?????# # ## #????? | | ?????# !a % @ # ! ## #????? | | ?????# Y + ! ## #????? | | ?????# # ! ## #????? | | ?????# ### ##+#+# ] ##=#????? | | ?????## ## #??# #####+# +### ##???? | | ??????? ???#????# #?###[ = #???? | | ??????? ??????????# ## ## = #???? | | ??????????????????# / =%* = #???? | | ??????????????????# # ######### #???? | | ??????????????????# ##??# #???? | | ??????????????????# %= #???# #???? | | ??????????????????# %[ = #??# ##### | | ??????????????????# !% #??# [% | | ??????????????????##### " #??# | | ????????????????????? #??# | | ???????????????????? ##??######## | | ???????????????????? # # #??????????# | | ???????????????????## ?#### #???######## | | ????????????????????## #?????? #???# # | | ?????????????????????# ??????? #???# # | | ?????????????????????# ???????? ???# # | | ?????????????????????# ????????????# # | | ????????????????????????????????????# + | | ????????????????????????????????????# # | | ????????????????????????????????????######## | +----------------------------------------------------+ Best States ------------- Heat Dissipation 28 Energy Generation 12 Energy Capacity 265 Matter Stores 300 Matter Capacity 300 Sight Range 16 Robot Scan Range 14 Terrain Scan Density 10 Evasion (%) 55 Targeting Accuracy 8 Recoil Reduction 3 Item Schematics ----------------- None Robot Schematics ------------------ None Fabricated ------------ Nothing Repaired ---------- Nothing Alien Tech Used ----------------- None Achievements -------------- Close Call Challenges ------------ None Game ------ Seed DeuteriumMetaCompressor Manual? 0 Play Time 00:49:59 Cumulative 24.7 hours Start 2025.08.02 @ 20:09:11 End 2025.08.30 @ 19:57:42 Sessions 3 Manual Loads 0 Difficulty Rogue Special Mode None Game No. 31 Rogue 31 Adventurer 0 Explorer 0 Win Type - Total 0 Types 0/0/0/0/0/0/0/0/0/0 Lore% 10 Gallery% 14 Achievement% 12 Wizard Run 0 Options --------- Layout 0 ASCII 0 Keyboard 0 Movement Mouse Keybinds 0 Fullscreen 2 Font 18/SmallcapsGlow Map View 38x25 Zoom Use 97% Tactical HUD 1 Map Filters NONE Filters NONE Steam 1 RUN: fc20bff8-8c37-4f8d-87f8-59ce818906c8